Cogmind - Beta 15 @@@ ROGUE MODE // 2025.05.07 @ 04:00:46 Player: KamenAya Result: Destroyed by G-47 Trooper with Particle Gun Performance ------------- Evolutions (2) 1000 Regions Visited (4) 800 Robots Destroyed (60) 300 Value Destroyed (2189) 2189 Prototype IDs (4) 80 Alien Tech Used (0) 0 Bonus (0) 0 TOTAL SCORE: 4369 Bonus ------- None Cogmind --------- Core Integrity 0/550 Matter 121/300 Energy 280/280 System Corruption 3% Temperature Cool (9) Movement Core (200) Ox3 Location -8/Storage Parts ------- > --- POWER (1) -------- Heavy Ion Engine > --- PROPULSION (4) --- (None) > --- UTILITY (3) ------ (None) > --- WEAPON (3) ------- Heavy Particle Gun > --- INVENTORY (5) ---- (None) Peak State ------------ > --- POWER ------------ Improved Ion Engine > --- PROPULSION ------- Aluminum Leg Improved Aluminum Leg Carbon-fiber Leg Carbon-fiber Leg > --- UTILITY ---------- Improved Heat Sink Structural Scanner Shield Generator > --- WEAPON ----------- Particle Gun High-powered Shotgun Enhanced Autogun > --- INVENTORY -------- Light Nuclear Core Structural Scanner EM Shotgun Shotgun [Rating: 26] Favorites ----------- Power Light Ion Engine Engine Light Ion Engine Power Core Light Nuclear Core Propulsion Wheel Leg Carbon-fiber Leg Wheel Wheel Utility Structural Scanner Device Structural Scanner Protection Light Armor Plating Weapon Small Laser Energy Gun Small Laser Ballistic Gun Light Assault Rifle Launcher Shock Bomb Launcher Build | -11 -10 -9 -8 -8 ------- Run | Yrd Mat Mat Mat Sto Slots Evolved 4 | . . 2 2 . Power . | . . . . . Propulsion 2 | . . 1 1 . Utility 1 | . . . 1 . Weapon 1 | . . 1 . . Parts Attached 50 | 5 9 8 15 13 Power 9 | 1 1 3 1 3 Engine 7 | 1 1 3 1 1 Core 2 | . . . . 2 Reactor . | . . . . . Propulsion 13 | 2 2 . 6 3 Treads . | . . . . . Leg 9 | . . . 6 3 Wheel 4 | 2 2 . . . Hover . | . . . . . Flight . | . . . . . Utility 7 | . 2 1 3 1 Device 6 | . 2 1 3 . Storage . | . . . . . Processor . | . . . . . Hackware . | . . . . . Protection 1 | . . . . 1 Artifact . | . . . . . Weapon 21 | 2 4 4 5 6 Energy Gun 10 | 1 2 2 2 3 Energy Cannon . | . . . . . Ballistic Gun 10 | 1 2 2 3 2 Ballistic Cannon . | . . . . . Launcher 1 | . . . . 1 Special Weapon . | . . . . . Impact Weapon . | . . . . . Slashing Weapon . | . . . . . Piercing Weapon . | . . . . . Special Melee Weapon . | . . . . . Unidentified Prototypes 4 | . . . 1 3 Parts Lost 29 | . 1 3 2 23 Power 3 | . 1 . . 2 Propulsion 9 | . . 1 1 7 Utility 6 | . . 1 . 5 Weapon 11 | . . 1 1 9 Highest Loss Streak 16 | . 1 2 1 16 To Critical Strikes . | . . . . . Average Backups 3 | 1 2 3 4 3 Power . | . . . . 1 Propulsion . | . . . . . Utility . | . . 1 . . Weapon 2 | . 1 2 2 1 Tool/Special . | . . . . . Unused Backups 1 | . 1 . . . Power . | . . . . . Propulsion 1 | . 1 . . . Utility . | . . . . . Weapon . | . . . . . Tool/Special . | . . . . . Average Slot Usage (%) 86 | . 85 84 95 80 Engine 9 | . 13 11 9 4 Core 1 | . . . . 4 Leg 13 | . . . 32 26 Wheel 12 | . 27 19 . . Device 20 | . 15 21 27 18 Energy Gun 12 | . 11 15 13 8 Ballistic Gun 15 | . 16 17 13 13 Peak Build Rating 26 | 5 7 9 26 26 Average Rating 12 | 4 6 8 21 18 On Entrance 9 | . 5 7 9 26 Naked Turns . | . . . . . Heaviest Build 22 | 7 9 14 20 22 Greatest Support 58 | 26 26 20 58 53 Greatest Overweight (x) 4 | . . 1 1 4 Average Overweight (x) . | . . . . . Largest Inventory Capacity 5 | 5 5 5 5 5 Average Capacity 5 | 5 5 5 5 5 Most Carried 5 | 3 5 5 5 5 Average Carried 3 | 1 2 3 4 3 Final Capacity 5 | 5 5 5 5 5 Final Carried 4 | 2 4 4 4 . Class Distribution -------------------- 29% | Scavenger-Skirmisher 28% | Scavenger-Tank 23% | Mutant 18% | Scavenger-Mutant Dominant Class ---------------- Scavenger-Mutant | -10/Materials Scavenger-Skirmisher | -9/Materials Scavenger-Tank | -8/Materials Scavenger-Tank | -8/Storage Resources | -11 -10 -9 -8 -8 ----------- Run | Yrd Mat Mat Mat Sto Matter Collected 1288 | 260 200 185 367 276 Remotely . | . . . . . Salvage Created 2352 | . 260 572 835 685 Parts 139 | . 22 35 42 40 Haulers Intercepted . | . . . . . Recyclers Shooed . | . . . . . Parts Field Recycled . | . . . . . Retrieved Matter . | . . . . . Parts Self-Destructed . | . . . . . Prevented . | . . . . . Kills | -11 -10 -9 -8 -8 ------- Run | Yrd Mat Mat Mat Sto Combat Hostiles Destroyed 55 | . 8 14 18 15 Guns 51 | . 6 14 16 15 AOE 4 | . 2 . 2 . Classes Destroyed 9 | . 3 3 1 2 Worker 1 | . . . . 1 Builder 2 | . 1 . 1 . Recycler 1 | . . . 1 . Watcher 1 | . . 1 . . Swarmer 9 | . 3 3 3 . Grunt 35 | . 5 7 13 10 Brawler 1 | . . . . 1 Duelist 1 | . . 1 . . Sentry 9 | . . 3 2 4 Best Kill Streak 9 | . 7 4 9 5 Combat Bots Only 7 | . 6 4 7 5 Max Kills in Single Turn 2 | . 2 2 2 1 Gunslinging 1 | . . 1 1 . Exploded 2 | . 2 . 2 . Melee . | . . . . . Uniques/NPCs Destroyed . | . . . . . Combat | -11 -10 -9 -8 -8 -------- Run | Yrd Mat Mat Mat Sto Hostile Shots Fired 403 | . 71 59 112 161 Missed 122 | . 22 24 35 41 Hits 281 | . 49 35 77 120 Melee 4 | . . . . 4 Projectile 277 | . 49 35 77 116 Critical Strikes 13 | . . 1 5 7 Damage Taken 3849 | . 539 476 930 1904 Core 855 | . 176 120 158 401 Absorbed by Shields 367 | . . . 326 41 Regen/Repaired (Parts) 70 | . 34 36 . . Core Remaining (%) 66 | 100 29 70 . . Volleys Fired 176 | . 30 35 54 57 Largest 3 | . 2 3 3 3 Hottest 115 | . 70 110 115 115 Shots Fired 418 | . 60 100 143 115 Gun 415 | . 60 100 143 112 Cannon . | . . . . . Launcher 3 | . . . . 3 Special . | . . . . . Kinetic 252 | . 36 53 86 77 Thermal 145 | . 15 47 52 31 Explosive . | . . . . . Electromagnetic 21 | . 9 . 5 7 Robot Hit Streak 13 | . 8 10 13 13 Robot Miss Streak 7 | . 4 7 4 5 Penetration Max . | . . . . . Secondary Targets 11 | . 1 2 4 4 Max Gunslinging Chain 1 | . 1 1 1 1 Shots Hit Robots 275 | . 37 62 99 77 Core Hits 136 | . 15 32 50 39 Critical Kills 1 | . . . . 1 Critical Parts Destroyed 1 | . . 1 . . Critical Strikes 6 | . 2 2 . 2 Burn 3 | . 1 1 . 1 Destroy 2 | . . 1 . 1 Corrupt 1 | . 1 . . . Melee Attacks . | . . . . . Impact . | . . . . . Slashing . | . . . . . Piercing . | . . . . . Sneak Attacks . | . . . . . Combat Hostiles . | . . . . . Follow-up Attacks . | . . . . . Damage Inflicted 4491 | . 571 694 1730 1496 Guns 3795 | . 479 694 1336 1286 Cannons . | . . . . . Explosions 685 | . 92 . 394 199 Melee . | . . . . . Ramming 11 | . . . . 11 Kinetic 2330 | . 263 323 808 936 Thermal 1405 | . 244 371 473 317 Explosive 434 | . . . 394 40 Electromagnetic 311 | . 64 . 55 192 Impact . | . . . . . Slashing . | . . . . . Piercing . | . . . . . Highest Corruption 3 | . . 2 . 3 Average Corruption 1 | . . 2 . 1 Corruption Purged . | . . . . . Corruption Blocked . | . . . . . Effects 4 | . . 1 . 3 Heat Flow Errors 2 | . . 1 . 1 Parts Rejected 1 | . . . . 1 Data Loss (minor) 1 | . . . . 1 Overload Shots . | . . . . . Overflow Damage 56 | . . . 35 21 Projectiles . | . . . . . Explosions 56 | . . . 35 21 Melee . | . . . . . Knockbacks . | . . . . . Impact . | . . . . . Kinetic . | . . . . . Secondary . | . . . . . Self-Inflicted Damage 236 | . 35 . 125 76 Shots 6 | . 1 . 2 3 Rammed . | . . . . . Targets Rammed 2 | . . . . 2 Kicked 2 | . . . . 2 Crushed . | . . . . . Highest Temperature 512 | . 44 174 51 512 Average Temperature 97 | . 12 72 17 144 Received Heat Transfer 1813 | . 171 204 459 979 Effects 8 | . . . . 8 Shutdowns 2 | . . . . 2 Energy Bleed 2 | . . . . 2 Matter Decay 2 | . . . . 2 Short Circuit 2 | . . . . 2 Siege Activations . | . . . . . Martial Activations . | . . . . . Shielding Activations . | . . . . . Robots Disrupted . | . . . . . Combat Hostiles . | . . . . . Robots Corrupted . | . . . . . Combat Hostiles . | . . . . . Parts Fried . | . . . . . Impact Corruptions . | . . . . . Robots Melted . | . . . . . Combat Hostiles . | . . . . . Parts Melted 4 | . . 1 . 3 Heat Transferred 3437 | . 618 982 1060 777 Parts Sabotaged . | . . . . . Parts Stolen . | . . . . . Parts Stripped . | . . . . . Power Chain Reactions 1 | . 1 . . . Alert | -11 -10 -9 -8 -8 ------- Run | Yrd Mat Mat Mat Sto Maximum Alert Level 1 | . . . 1 1 Low Security (%) 95 | 100 100 100 88 87 Level 1 4 | . . . 11 12 Level 2 . | . . . . . Level 3 . | . . . . . Level 4 . | . . . . . Level 5 . | . . . . . High Security . | . . . . . Max Security . | . . . . . Peak Influence 272 | . 140 140 272 234 Initial 114 | . . 26 50 114 Average 86 | . 69 74 98 155 Influence Increases 1755 | . 246 422 496 591 Destroy 0b10 Robot/C 1100 | . 160 280 360 300 Destroy 0b10 Robot/NC 25 | . 5 5 10 5 Destroy Leader 222 | . 30 72 60 60 Successful Hack 3 | . . 3 . . Disable Machine 90 | . 15 15 30 30 Destroy Structure 60 | . 6 2 36 16 Partial Spotted 30 | . 15 15 . . Lose Combat Pursuer 225 | . 15 30 . 180 Influence Decreases 1566 | . 182 366 344 674 Entered New Map 266 | . . 38 70 158 Time Decay 1010 | . 172 298 254 286 Lost Part 290 | . 10 30 20 230 Squads Dispatched 9 | . 1 2 3 3 Investigation 1 | . 1 . . . Extermination . | . . . . . Reinforcement 7 | . . 2 3 2 Assault . | . . . . . Garrison 1 | . . . . 1 Intercept . | . . . . . Searches Triggered . | . . . . . Construction Impeded 1 | . . . 1 . Haulers Reinforced . | . . . . . Active Scanning Responses . | . . . . . Cargo Convoy Interrupts . | . . . . . Stealth | -11 -10 -9 -8 -8 --------- Run | Yrd Mat Mat Mat Sto Distress Signals 6 | . 1 3 2 . Communications Jammed . | . . . . . Distress Signals . | . . . . . Times Spotted 91 | . 10 19 24 38 Peak Tracking Total 9 | . 5 6 5 9 Tactical Retreats 10 | . 1 2 . 7 Traps | -11 -10 -9 -8 -8 ------- Run | Yrd Mat Mat Mat Sto Traps Triggered 2 | . 1 1 . . Indirectly . | . . . . . Trap Hack Attempts . | . . . . . Triggered . | . . . . . Disarmed . | . . . . . Reprogrammed . | . . . . . Reused . | . . . . . Traps Extracted . | . . . . . Installed . | . . . . . Triggered . | . . . . . Machines | -11 -10 -9 -8 -8 ---------- Run | Yrd Mat Mat Mat Sto Machines Disabled 6 | . 1 1 2 2 Max in Single Turn 2 | . 1 1 2 1 Machines Repaired . | . . . . . Machines Dismantled . | . . . . . Machines Sabotaged . | . . . . . Overloaded Fab Kills . | . . . . . Hacking | -11 -10 -9 -8 -8 --------- Run | Yrd Mat Mat Mat Sto Machines Accessed 5 | . 1 3 . 1 Terminals 2 | . . 1 . 1 Fabricators . | . . . . . Repair Stations 2 | . 1 1 . . Recycling Units 1 | . . 1 . . Scanalyzers . | . . . . . Garrison Access . | . . . . . Total Hacks 10 | . 2 6 . 2 Successful 10 | . 2 6 . 2 Failed . | . . . . . Catastrophic . | . . . . . Database Lockouts . | . . . . . Manual 4 | . . 2 . 2 Terminals 5 | . . 3 . 2 Fabricators . | . . . . . Repair Stations 4 | . 2 2 . . Recycling Units 1 | . . 1 . . Scanalyzers . | . . . . . Garrison Access . | . . . . . Terminal Hacks 5 | . . 3 . 2 Record 5 | . . 3 . 2 Fabricator Hacks . | . . . . . Repair Station Hacks 4 | . 2 2 . . Scan Component 2 | . 1 1 . . Repair 2 | . 1 1 . . Recycling Unit Hacks 1 | . . 1 . . Report Inventory 1 | . . 1 . . Scanalyzer . | . . . . . Garrison Access Hacks . | . . . . . Unauthorized Hacks . | . . . . . Terminals . | . . . . . Fabricators . | . . . . . Repair Stations . | . . . . . Recycling Units . | . . . . . Scanalyzers . | . . . . . Garrison Access . | . . . . . Data Cores Recovered . | . . . . . Used . | . . . . . Hacking Detections 2 | . . 1 . 1 Full Trace Events . | . . . . . Feedback Events . | . . . . . Feedback Blocked . | . . . . . Robot Schematics Acquired . | . . . . . Robots Built . | . . . . . Authchips . | . . . . . Time . | . . . . . Total Robot Build Rating . | . . . . . Part Schematics Acquired . | . . . . . Parts Built . | . . . . . Authchips . | . . . . . Time . | . . . . . Total Part Build Rating . | . . . . . Parts Repaired 2 | . 1 1 . . Time 52 | . 26 26 . . Parts Recycled . | . . . . . Recycled Matter . | . . . . . Retrieved Matter . | . . . . . Retrieved Components . | . . . . . Parts Scanalyzed . | . . . . . Part Schematics Acquired . | . . . . . Parts Damaged . | . . . . . Bothacking | -11 -10 -9 -8 -8 ------------ Run | Yrd Mat Mat Mat Sto Used RIF Installer . | . . . . . Robots Hacked . | . . . . . Non-combat . | . . . . . Combat . | . . . . . Robot Hacks Applied . | . . . . . Relay Couplers Released . | . . . . . Fabnet Peak Effective % . | . . . . . Robots Rewired . | . . . . . Allies Hacked . | . . . . . Hacks Repelled . | . . . . . Allies | -11 -10 -9 -8 -8 -------- Run | Yrd Mat Mat Mat Sto Total Allies . | . . . . . Largest Group . | . . . . . Highest-Rated Group . | . . . . . Highest-Rated Ally . | . . . . . Total Orders . | . . . . . Ally Attacks . | . . . . . Total Damage . | . . . . . Kills . | . . . . . Allies Corrupted . | . . . . . Allies Melted . | . . . . . Intel | -11 -10 -9 -8 -8 ------- Run | Yrd Mat Mat Mat Sto Active Infowar (turns) 2255 | . 324 839 551 541 Structural 2255 | . 324 839 551 541 Robot Analysis Total . | . . . . . Derelict Logs Recovered . | . . . . . Drone Launches . | . . . . . Drone Recoveries . | . . . . . Exploration | -11 -10 -9 -8 -8 ------------- Run | Yrd Mat Mat Mat Sto Turns Passed 2943 | 360 569 839 553 622 Spaces Moved 1415 | 84 301 459 263 308 Core 12 | 3 . . . 9 Treads . | . . . . . Legs 538 | . . . 239 299 Wheels 865 | 81 301 459 24 . Hover . | . . . . . Flight . | . . . . . Fastest Speed 50 | 50 80 80 95 50 Average Speed 99 | 88 80 83 117 129 Slowest Speed 250 | 90 90 95 120 250 Overloaded Moves . | . . . . . Propulsion Burnouts . | . . . . . Robots Hopped . | . . . . . Potential Cave-ins . | . . . . . Cave-ins Triggered . | . . . . . Exploration Rate (%) 34 | 10 43 39 28 50 Regions Visited 4 Branch Regions 1 Pre-discovered Areas . | . . . . . Known Exits Taken . | . . . . . Unknown Exits Taken 4 | 1 1 1 1 . Scrap Searched . | . . . . . Spaces Dug . | . . . . . Terrain Destroyed 57 | . 4 . 42 11 Melee . | . . . . . Projectile . | . . . . . AOE 57 | . 4 . 42 11 Terrain Rammed . | . . . . . Walls Destroyed . | . . . . . Machines Disabled . | . . . . . Actions | -11 -10 -9 -8 -8 --------- Run | Yrd Mat Mat Mat Sto Total 2629 | 369 572 846 403 439 Wait 902 | 272 213 325 47 45 Move 1411 | 83 300 458 262 308 Hop . | . . . . . Pick Up 46 | 7 10 11 9 9 Fast Attach 8 | . . . 5 3 Attach 41 | 6 11 5 7 12 Detach 8 | 1 4 . 3 . Swap 13 | . . 5 6 2 Drop 22 | . 4 7 10 1 Fire 176 | . 30 35 54 57 Melee . | . . . . . Ram . | . . . . . Kick 2 | . . . . 2 Crush . | . . . . . Escape Stasis . | . . . . . Rewire . | . . . . . Trap . | . . . . . Miscellaneous . | . . . . . Route ------- -11/Scrapyard -10/Materials -9/Materials -8/Materials -8/Storage History --------- Turn | Location | Event 9 | -11/Scrapyard | Discovered new exit (range 15) 361 | -11/Scrapyard | Entered Materials 362 | -10/Materials | Build established: Mutant 362 | -10/Materials | Met a group of wandering Federalists 647 | -10/Materials | Discovered new exit (range 10) 711 | -10/Materials | Core integrity fell below 50% 872 | -10/Materials | Repaired Wheel 914 | -10/Materials | Build established: Scavenger-Mutant 930 | -10/Materials | Entered another Materials area 930 | -9/Materials | Evolved 2 slots: Propulsion x1, Weapon x1 1214 | -9/Materials | Build established: Scavenger-Skirmisher 1340 | -9/Materials | Repaired Wheel 1705 | -9/Materials | Discovered new exit (range 16) 1769 | -9/Materials | Entered another Materials area 1769 | -8/Materials | Evolved 2 slots: Propulsion x1, Utility x1 2184 | -8/Materials | Destroyed 7 combat bots 2213 | -8/Materials | Build established: Scavenger-Tank 2282 | -8/Materials | Discovered new exit (range 13) 2322 | -8/Materials | Entered Storage 2616 | -8/Storage | Lost 4 parts (2n2w) 2845 | -8/Storage | Garrison activated, responded to threat 2889 | -8/Storage | Core integrity fell below 50% 2916 | -8/Storage | Core integrity fell below 20% 2943 | -8/Storage | Lost 16 parts (2p4n4u6w) 2944 | -8/Storage | Destroyed by G-47 Trooper with Particle Gun Last Messages --------------- 02908_ Particle Gun destroyed. 02909_ Acquired Prototype Energy Gun. 02910_ Identified Hvy. Particle Gun. 02911_ ALERT: Hostiles spotted, dispatching reinforcements to Terminal S003. 02912_ Structural Scanner destroyed. 02912_ System corrupted by crushing effect (+2). 02914_ Critical hit (Burn: +37). 02914_ K-01 Serf collects debris. 02916_ Acquired Prototype Ballistic Gun. 02917_ Identified Imp. Assault Rifle. 02919_ Acquired Prototype Engine. 02920_ System corrupted: Component data lost. 02920_ M-13 Machinist fits Backup Power I on G-47 Trooper. 02920_ Identified Hvy. Ion Engine. 02927_ K-01 Serf collects debris. 02930_ Acquired 29 matter. 02940_ System corrupted: Imp. Assault Rifle rejected. Map ----- +----------------------------------------------------+ | ## ## ! ######## ### ## ???????????? | | ######### ] ######## #######+#### ???????????? | | #### + # ??????????? | | #### #### ! ] # ! T??????????? | | #### #### !# ??????????? | | ### = ########## " " """ ###### ???????????? | | *%! "R" """ #######????????????? | | ### = ########### """ """ ###????????????????? | | ########## # ###????????????????? | | ########??????? + ??????????? | | #????????????? # ##### #############????????????? | | ??????????????? # ##### #############????????????? | | ??????????????? # ?#### #######??????????????????? | | ???????????????????####/#######??????????????????? | | ???????????????????## ##??????????????????? | | ??????????????????? # =[# ??????????????????? | | ??????????????????? # ""%[=# ??????????????????? | | ??????????????????? # ""[[%[# ??????????????????? | | ??????????????????? # """ =!%# ??????????????????? | | ??????????????????? # " [ "==# ??????????????????? | | ??????????????????? # " =""% # ??????????????????? | | ??????????????????? # l""" =*# ??????????????????? | | ??????????????????? # g # ??????????????????? | | ?????????????#+#########g#########+###???????????? | | ?????????? kk g ????????? | | ?????????? w @ g ????????? | | ?????????? g ????????? | | ???????????###+###################+#####?????????? | | ?????????????????#####???????????????????????????? | | ?????????????????????????????????????????????????? | | ?????????????????????????????????????????????????? | | ?????????????????????????????????????????????????? | | ?????????????????????????????????????????????????? | | ?????????????????????????????????????????????????? | | ?????????????????????????????????????????????????? | | ?????????????????????????????????????????????????? | | ?????????????????????????????????????????????????? | | ?????????????????????????????????????????????????? | | ?????????????????????????????????????????????????? | | ?????????????????????????????????????????????????? | | | | | | | | | | | | | | | | | | | | | +----------------------------------------------------+ Best States ------------- Heat Dissipation 45 Energy Generation 14 Energy Capacity 280 Matter Stores 300 Matter Capacity 300 Sight Range 16 Terrain Scan Density 10 Armor Coverage 150 Evasion (%) 55 Item Schematics ----------------- None Robot Schematics ------------------ None Fabricated ------------ Nothing Repaired ---------- Wheel | 15% | -10/Materials Wheel | 10% | -9/Materials Alien Tech Used ----------------- None Achievements -------------- None Challenges ------------ None Game ------ Seed AssaultFactoryProjector Manual? 0 Play Time 00:30:19 Cumulative 6.5 hours Start 2025.05.07 @ 03:29:08 End 2025.05.07 @ 04:00:46 Sessions 1 Manual Loads 0 Difficulty Rogue Special Mode None Game No. 10 Rogue 10 Adventurer 0 Explorer 0 Win Type - Total 0 Types 0/0/0/0/0/0/0/0/0/0 Lore% 4 Gallery% 13 Achievement% 15 Wizard Run 0 Options --------- Layout 1 ASCII 0 Keyboard 0 Movement Mouse Keybinds 0 Fullscreen 2 Font 24/Smallcaps Map View 50x35 Zoom Use 0% Tactical HUD 1 Map Filters NONE Filters NONE Steam 1 RUN: 2cdc99c2-86e5-491f-ae37-e1bac5a84bff